lending/lending_fUSD_20250621
["ID","MTS","AMOUNT","RATE_DAILY","PERIOD"]
[366850823,1750512644023,-170.94,0.00024882,2]
[366850825,1750512644032,-150.0,0.00024882,2]
[366850827,1750512644042,-150.0,0.00024882,2]
[366850828,1750512644051,-170.94,0.00024882,2]
[366850830,1750512644060,-150.0,0.00024882,2]
[366850832,1750512644070,-500.0,0.00024886,30]
[366850833,1750512644079,-500.0,0.00024886,30]
[366850835,1750512644089,-500.0,0.00024886,30]
[366850837,1750512644099,-500.0,0.00024886,30]
[366850838,1750512644108,-500.0,0.00024886,14]
[366850840,1750512644117,-500.0,0.00024888,2]
[366850842,1750512644127,-300.0,0.00024899,10]
[366850843,1750512644136,-4100.0,0.000249,9]
[366850845,1750512644146,-424.99837877,0.00024913,30]
[366850847,1750512644155,-500.0,0.00024913,30]
[366850848,1750512644164,-152.0,0.00024913,30]
[366850850,1750512644174,-500.0,0.00024913,30]
[366850852,1750512644183,-348.47890316,0.00024913,14]
[366850853,1750512644192,-3738.11475056,0.00024917,2]
[366850855,1750512644201,-168.0,0.00024918,2]
[366850857,1750512644211,-447.98759563,0.00024922,2]
[366850859,1750512644220,-8102.67633024,0.00024923,2]
[366850860,1750512644229,-315.31090303,0.00024931,120]
[366850862,1750512644239,-200.0,0.00024939,2]
[366850864,1750512644248,-500.0,0.0002494,30]
[366850865,1750512644258,-500.0,0.0002494,30]
[366850867,1750512644268,-336.2,0.00024941,2]
[366850869,1750512644278,-500.0,0.00024968,30]
[366850870,1750512644288,-225.03574709,0.00024968,30]
[366850872,1750512644297,-500.0,0.0002497,2]
[366850874,1750512644307,-1000.0,0.0002497,2]
[366850875,1750512644317,-192.40500256,0.00024973,10]
[366850876,1750512644326,-168.0,0.00024973,2]
[366850877,1750512644335,-150.0,0.00024988,2]
[366850878,1750512644344,-150.0,0.00024988,2]
[366850879,1750512644353,-150.0,0.00024988,2]
[366850880,1750512644363,-150.0,0.00024988,2]
[366850881,1750512644371,-150.0,0.00024988,2]
[366850882,1750512644381,-341.48,0.00024988,2]
[366850883,1750512644390,-150.0,0.00024988,2]
[366850884,1750512644399,-910.06,0.00024988,2]
[366850885,1750512644409,-500.0,0.00024995,30]
[366850886,1750512644418,-201.51112756,0.00025,2]
[366850887,1750512644428,-37682.19397023,0.00025,2]
[366850888,1750512644439,-1732.9340371,0.00025,2]
[366850889,1750512644449,-200.0,0.00025,2]
[366850890,1750512644459,-2955.47171375,0.00025,2]
[366850891,1750512644468,-4029.01125864,0.00025,2]
[366850892,1750512644478,-1772.64320346,0.00025,2]
[366850893,1750512644488,-1033.45951923,0.00025,2]
[366850894,1750512644497,-1114.61364518,0.00025,5]
[366850895,1750512644507,-162.41650355,0.00025,2]
[366850896,1750512644517,-500.0,0.00025,30]
[366850897,1750512644527,-600.0,0.00025,30]
[366850906,1750512644753,-600.0,0.00025,30]
[366850907,1750512644793,-600.0,0.00025,30]
[366850908,1750512644802,-600.0,0.00025,30]
[366850909,1750512644813,-600.0,0.00025,30]
[366850910,1750512644822,-600.0,0.00025,30]
[366850911,1750512644832,-600.0,0.00025,30]
[366850912,1750512644841,-600.0,0.00025,30]
[366850913,1750512644851,-600.0,0.00025,30]
[366850914,1750512644861,-600.0,0.00025,30]
[366850916,1750512644870,-600.0,0.00025,30]
[366850918,1750512644879,-600.0,0.00025,30]
[366850920,1750512644889,-948.93998968,0.00025,30]
[366850922,1750512644902,-340.0,0.00025,2]
[366850924,1750512644911,-1000.0,0.00025,2]
[366850926,1750512644921,-780.58364248,0.00025,7]
[366850928,1750512644931,-281.91,0.00025021,120]
[366850930,1750512644941,-500.0,0.00025023,30]
[366850932,1750512644951,-168.0,0.00025036,2]
[366850934,1750512644962,-512.55715163,0.0002505,30]
[366850936,1750512644972,-3281.8832695,0.000251,2]
[366850938,1750512644983,-180.0,0.00025118,2]
[366850940,1750512644992,-180.0,0.00025137,2]
[366850942,1750512645002,-2000.0,0.00025206,60]
[366850944,1750512645012,-500.0,0.00025206,120]
[366850945,1750512645022,-230.40195338,0.0002521,12]
[366850946,1750512645032,-168.0,0.00025219,2]
[366850948,1750512645042,-500.49750435,0.00025221,2]
[366850949,1750512645052,-502.33983832,0.00025221,2]
[366850950,1750512645062,-1000.0,0.00025221,2]
[366850951,1750512645072,-168.0,0.0002526,2]
[366850952,1750512645082,-8102.67633024,0.00025285,2]
[366850953,1750512645091,-1000.0,0.00025321,2]
[366850954,1750512645101,-1000.0,0.00025321,2]
[366850955,1750512645111,-1000.0,0.00025321,2]
[366850956,1750512645121,-1000.0,0.00025321,2]
[366850957,1750512645131,-202.0,0.00025463,6]
[366850958,1750512645141,-344.95627202,0.00025505,2]
[366850959,1750512645150,-447.98759563,0.00025544,2]
[366850960,1750512645160,-3738.11475056,0.00025546,2]
[366850961,1750512645169,-1000.0,0.00025549,2]
[366850962,1750512645179,-500.0,0.00025555,2]
[366850963,1750512645189,-168.0,0.00025599,7]
[366850964,1750512645198,-300.0,0.00025599,10]
[366850965,1750512645208,-300.0,0.00025599,10]
[366850966,1750512645218,-300.0,0.00025599,10]
[366850967,1750512645228,-300.0,0.00025599,10]
[366850968,1750512645238,-30294.45785712,0.000256,7]
[366850971,1750512646078,-16627.1214952,0.000256,7]
[366850972,1750512646089,-591.63113666,0.000256,7]
[366850973,1750512646100,-488.456,0.000256,7]
[366850974,1750512646335,-310.14390868,0.00024136,2]
[366850975,1750512646347,-189.85609132,0.00024136,2]
[366850976,1750512646356,-500.0,0.00024136,2]
[366850977,1750512646366,-500.0,0.00024136,2]
[366850978,1750512646376,-27.79578638,0.00024136,2]
[366850979,1750512646400,-477.48072019,0.00024136,2]
[366850980,1750512646409,-500.0,0.00024136,2]
[366850981,1750512646419,-311.46059264,0.00024136,2]
[366850982,1750512646429,-500.0,0.00024136,2]
[366850983,1750512646439,-500.0,0.00024136,2]
[366850984,1750512646448,-500.0,0.00024136,2]
[366850985,1750512646458,-500.0,0.00024136,2]
[366850986,1750512646468,-154.82661758,0.00024136,2]
[366850987,1750512646478,-607.27701632,0.00024136,2]
[366850988,1750512646488,-500.0,0.00024136,2]
[366850989,1750512646497,-9452.55505327,0.000256,7]
[366850990,1750512646687,-1687.10312923,0.00024692,4]
[366850991,1750512646703,-368.318324,0.00024692,4]
[366850992,1750512646821,-2181.91421282,0.00024692,4]
[366850994,1750512646833,-14129.08253655,0.00024692,4]
[366851003,1750512673254,152.9,0.00013699,2]
[366851004,1750512953665,-152.9,0.00021404,2]
[366851005,1750512953700,-302.47,0.00021595,2]
[366851006,1750512953735,-301.58,0.00021644,2]
[366851007,1750512953771,-301.86,0.00021658,2]
[366851008,1750512953805,-253.17,0.00021762,2]
[366851009,1750512953841,-249.02,0.00021762,2]
[366851010,1750512953875,-247.45,0.00021762,2]
[366851011,1750512953908,-303.71,0.0002183,2]
[366851012,1750512953940,-249.17,0.00021873,2]
[366851013,1750512953975,-202.0,0.00021905,2]
[366851014,1750512975733,-168.0,0.00022599,2]
[366851015,1750512975756,-834.26476573,0.00022757,2]
[366851016,1750512979273,249.12,0.0002273,2]
[366851017,1750512980083,185.28523427,0.0002273,2]
[366851018,1750513157449,400.88073591,0.00024658,120]
[366851019,1750513231741,-202.0,0.00022266,2]
[366851020,1750513231767,-252.49,0.00022269,2]
[366851021,1750513231791,-246.88,0.00022269,2]
[366851022,1750513231815,-251.63,0.00022271,2]
[366851023,1750513231840,-253.4,0.00022271,2]
[366851024,1750513231862,-304.33,0.00022272,2]
[366851025,1750513231885,-302.48,0.00022277,2]
[366851026,1750513231908,-253.79,0.00022312,2]
[366851027,1750513231931,-251.93,0.00022312,2]
[366851028,1750513231955,-251.79,0.00022312,2]
[366851029,1750513231978,-300.0,0.00022729,2]
[366851030,1750513232000,-300.0,0.00022729,2]
[366851031,1750513232023,-248.48,0.00022729,2]
[366851032,1750513232046,-246.45,0.00022729,2]
[366851033,1750513232068,-305.44,0.00022729,2]
[366851034,1750513232090,-303.94,0.00022729,2]
[366851035,1750513232112,-119.77476573,0.0002273,2]
[366851036,1750513232137,-250.37,0.0002273,2]
[366851037,1750513232160,-300.8,0.0002273,2]
[366851038,1750513232184,-249.1,0.0002273,2]
[366851039,1750513232208,-245.56,0.0002273,2]
[366851040,1750513232230,-303.87,0.0002273,2]
[366851041,1750513232252,-254.13,0.0002273,2]
[366851042,1750513232275,-245.57,0.0002273,2]
[366851043,1750513232297,-301.58,0.0002273,2]
[366851044,1750513232320,-247.18,0.0002273,2]
[366851045,1750513232343,-250.04,0.0002273,2]
[366851046,1750513232365,-303.38,0.0002273,2]
[366851047,1750513232389,-251.75,0.0002273,2]
[366851048,1750513232414,-249.11,0.0002273,2]
[366851049,1750513232439,-302.66,0.0002273,2]
[366851050,1750513232463,-250.18,0.0002273,2]
[366851051,1750513232487,-248.7,0.0002273,2]
[366851052,1750513232513,-254.19,0.0002273,2]
[366851053,1750513232537,-245.56,0.0002273,2]
[366851054,1750513232559,-304.87,0.0002273,2]
[366851055,1750513232582,-305.01,0.0002273,2]
[366851056,1750513232605,-254.64,0.00022731,2]
[366851057,1750513232629,-245.69,0.00022731,2]
[366851058,1750513232652,-254.56,0.00022731,2]
[366851059,1750513232676,-248.85,0.00022731,2]
[366851060,1750513232699,-303.59,0.00022732,2]
[366851061,1750513232720,-302.05,0.00022732,2]
[366851062,1750513232744,-245.07,0.00022747,2]
[366851063,1750513232767,-250.0,0.00022747,2]
[366851064,1750513232790,-56.19,0.00022763,2]
[366851065,1750513340091,200.44036795,0.00024658,120]
[366851249,1750513675347,150.0,0.0002465,120]
[366851255,1750513725680,200.0,0.0002465,120]
[366851268,1750513832233,-1000.0,0.00022,2]
[366851270,1750513832244,-800.0,0.00022,2]
[366851271,1750513832254,-201.7615358,0.00022,2]
[366851272,1750513832265,-600.0,0.00022262,2]
[366851273,1750513832275,-23.14631564,0.00022262,2]
[366851274,1750513832405,-400.0,0.00022262,2]
[366851275,1750513832417,-776.85368436,0.00022262,2]
[366851276,1750513832427,-848.0,0.00022263,2]
[366851277,1750513832438,-301.86,0.00022263,2]
[366851278,1750513832448,-301.26,0.00022263,2]
[366851279,1750513832458,-300.07,0.00022263,2]
[366851280,1750513832468,-305.08,0.00022263,2]
[366851281,1750513832478,-300.51,0.00022263,2]
[366851282,1750513832489,-304.98,0.00022263,2]
[366851283,1750513832499,-249.25,0.00022263,2]
[366851284,1750513832510,-252.83,0.00022263,2]
[366851285,1750513832520,-300.47,0.00022263,2]
[366851286,1750513832530,-304.71,0.00022263,2]
[366851287,1750513832540,-68.17057903,0.00022264,2]
[366851288,1750513832552,-233.03942097,0.00022264,2]
[366851289,1750513832562,-251.84,0.00022264,2]
[366851290,1750513832573,-304.05,0.00022264,2]
[366851291,1750513832583,-247.94,0.00022264,2]
[366851292,1750513832593,-247.57,0.00022264,2]
[366851293,1750513832603,-141.49557903,0.00022264,2]
[366851294,1750513832623,-160.18442097,0.00022264,2]
[366851295,1750513832633,-254.0,0.00022264,2]
[366851296,1750513832643,-248.55,0.00022264,2]
[366851298,1750513832653,-249.64,0.00022264,2]
[366851299,1750513832663,-251.72,0.00022264,2]
[366851300,1750513832673,-3.44531006,0.00022264,2]
[366851301,1750513832685,-244.32468994,0.00022264,2]
[366851302,1750513832694,-301.23,0.00022264,2]
[366851304,1750513832704,-251.54,0.00022264,2]
[366851305,1750513832714,-36.20135376,0.00022264,2]
[366851552,1750513838255,-212.29864624,0.00022264,2]
[366851553,1750513838265,-303.09,0.00022264,2]
[366851554,1750513838274,-302.32,0.00022264,2]
[366851555,1750513838284,-162.03197143,0.00022265,2]
[366851556,1750513838296,-90.90802857,0.00022265,2]
[366851557,1750513838306,-302.81,0.00022265,2]
[366851558,1750513838315,-245.89,0.00022265,2]
[366851559,1750513838325,-249.95,0.00022265,2]
[366851560,1750513838335,-304.53,0.00022265,2]
[366851561,1750513838356,-248.28,0.00022265,2]
[366851562,1750513838379,-246.15,0.00022265,2]
[366851563,1750513838401,-305.81,0.00022265,2]
[366851564,1750513838424,-245.35,0.00022265,2]
[366851565,1750513838446,-249.49,0.00022265,2]
[366851566,1750513838470,-303.7,0.00022265,2]
[366851567,1750513838492,-179.7480727,0.00022265,2]
[366851568,1750513838519,-74.5819273,0.00022265,2]
[366851569,1750513838541,-249.65,0.00022265,2]
[366851570,1750513838565,-304.93,0.00022265,2]
[366851571,1750513838588,-252.87,0.00022265,2]
[366851572,1750513838616,-304.21,0.00022265,2]
[366851573,1750513838639,-247.06,0.00022265,2]
[366851574,1750513838659,-251.42,0.00022265,2]
[366851575,1750513838670,-302.55,0.00022265,2]
[366851576,1750513838680,-247.85,0.00022265,2]
[366851577,1750513838690,-252.82,0.00022265,2]
[366851579,1750513838700,-250.33,0.00022266,2]
[366851581,1750513838710,-247.08,0.00022266,2]
[366851583,1750513838720,-20.44456079,0.00022266,2]
[366851585,1750513838732,-224.84543921,0.00022266,2]
[366851586,1750513838742,-245.64,0.00022266,2]
[366851588,1750513838752,-246.25,0.00022266,2]
[366851589,1750513838762,-72.68806453,0.00022266,2]
[366851602,1750513840478,-231.22193547,0.00022266,2]
[366851603,1750513840488,-254.04,0.00022266,2]
[366851604,1750513840497,-247.71,0.00022266,2]
[366851605,1750513840507,-301.03,0.00022266,2]
[366851606,1750513840517,-250.07,0.00022266,2]
[366851607,1750513840527,-254.47,0.00022266,2]
[366851608,1750513840537,-302.47,0.00022266,2]
[366851609,1750513840547,-254.17,0.00022266,2]
[366851610,1750513840557,-248.65,0.00022266,2]
[366851611,1750513840566,-300.81,0.00022266,2]
[366851612,1750513840576,-248.1,0.00022266,2]
[366851613,1750513840586,-248.37,0.00022266,2]
[366851614,1750513840596,-303.29,0.00022266,2]
[366851615,1750513840606,-303.24,0.00022267,2]
[366851616,1750513840619,-304.8,0.00022267,2]
[366851617,1750513840630,-666.0,0.0002267,2]
[366851618,1750513840639,-246.88,0.00022763,2]
[366851619,1750513840650,-330.97,0.00022805,2]
[366851620,1750513840661,-330.97,0.00022811,2]
[366851621,1750513840672,-330.97,0.00022817,2]
[366851622,1750513840682,-330.97,0.00022823,2]
[366851623,1750513840693,-250.0,0.00022827,2]
[366851624,1750513840704,-330.97,0.00022829,2]
[366851625,1750513840714,-330.97,0.00022835,2]
[366851626,1750513840724,-330.97,0.00022841,2]
[366851627,1750513840734,-330.97,0.00022847,2]
[366851628,1750513840744,-330.97,0.00022853,2]
[366851629,1750513840754,-330.97,0.00022859,2]
[366851630,1750513840763,-330.97,0.00022865,2]
[366851631,1750513840773,-330.97,0.00022871,2]
[366851632,1750513840783,-330.97,0.00022877,2]
[366851633,1750513840793,-330.97,0.00022883,2]
[366851634,1750513840803,-330.97,0.00022889,2]
[366851635,1750513840812,-330.97,0.00022895,2]
[366851636,1750513840822,-330.97,0.00022901,2]
[366851637,1750513840831,-330.97,0.00022907,2]
[366851638,1750513840842,-330.97,0.00022913,2]
[366851639,1750513840851,-330.97,0.00022919,2]
[366851640,1750513840861,-166.1,0.00022986,2]
[366851641,1750513840874,-168.0,0.00023045,2]
[366851642,1750513840884,-1169.13,0.00023062,2]
[366851643,1750513840894,-250.44,0.00023181,2]
[366851644,1750513840904,-301.24,0.00023197,2]
[366851645,1750513840914,-1957.856,0.00023455,2]
[366851646,1750513840925,-207.4,0.00023455,2]
[366851647,1750513840934,-168.0,0.00023466,2]
[366851648,1750513840944,-534.78246309,0.0002351,2]
[366851649,1750513840961,-409.68401112,0.0002351,2]
[366851662,1750513843470,-202.0,0.00021663,2]
[366851663,1750513843480,-202.0,0.00023032,4]
[366851664,1750513843490,-112.7725702,0.0002351,2]
[366851666,1750513843502,-973.05762759,0.0002351,2]
[366851667,1750513843511,-175.14171362,0.00023525,2]
[366851668,1750513843523,-410.83006425,0.00023525,2]
[366851669,1750513843584,-370.02822213,0.00023525,2]
[366851670,1750513843594,-14.24754251,0.0002353,2]
[366851671,1750513843606,-136.75245749,0.0002353,2]
[366851672,1750513843617,-314.70074251,0.00023532,2]
[366851689,1750513846306,-1275.03860164,0.00023532,2]
[366851690,1750513846419,-1817.91314296,0.00023532,2]
[366851691,1750513846431,-2748.1612554,0.00023532,2]
[366851692,1750513846567,-63.64348874,0.00023532,2]
[366851696,1750514054321,152.86,0.00013699,2]
[366851698,1750514573888,332.86620535,0.000246,120]
[366851699,1750514690555,-202.0,0.00019663,2]
[366851700,1750514690579,-202.0,0.00019663,2]
[366851701,1750514690604,-202.0,0.00019663,2]
[366851702,1750514690629,-157.07967357,0.0001999,2]
[366851703,1750514690652,-2500.0,0.00019994,2]
[366851704,1750514690684,-217.0,0.00019999,2]
[366851705,1750514690709,-6519.92032643,0.0002,2]
[366851706,1750514691450,-10000.0,0.0002,2]
[366851707,1750514692231,-10000.0,0.0002,2]
[366851708,1750514692962,-10000.0,0.0002,2]
[366851714,1750514959579,10000.0,0.00022,30]
[366851720,1750515031487,-202.0,0.00019924,2]
[366851721,1750515031498,-3480.07970252,0.0002,2]
[366851722,1750515031508,-1500.0,0.00020843,2]
[366851723,1750515031518,-666.0,0.00020845,2]
[366851724,1750515031527,-200.0,0.00020857,2]
[366851725,1750515031537,-1797.16,0.00020947,2]
[366851726,1750515031547,-250.0,0.00021002,2]
[366851727,1750515031557,-904.96046302,0.00021053,2]
[366851728,1750515031599,-295.03953698,0.00021053,2]
[366851729,1750515031610,-1427.3,0.00021054,2]
[366851730,1750515031620,-202.0,0.00021176,3]
[366851731,1750515031631,-200.0,0.00021262,7]
[366851732,1750515031641,-160.26,0.00021273,2]
[366851733,1750515031652,-506.0,0.00021425,2]
[366851734,1750515031663,-300.0,0.00021499,2]
[366851735,1750515031672,-1300.0,0.000215,7]
[366851736,1750515031681,-1852.42,0.00021501,2]
[366851737,1750515031691,-2600.0,0.000216,7]
[366851738,1750515031702,-2500.0,0.0002163,2]
[366851739,1750515031711,-200.0,0.00021661,2]
[366851740,1750515031721,-4000.0,0.000217,7]
[366851741,1750515031730,-447.0,0.00021788,2]
[366851742,1750515031739,-5300.0,0.000218,7]
[366851743,1750515031749,-253.26,0.00021847,2]
[366851744,1750515031759,-1600.92050987,0.000219,7]
[366851745,1750515031778,-5099.07949013,0.000219,7]
[366851746,1750515031788,-447.98759565,0.000219,2]
[366851747,1750515031797,-707.93798596,0.000219,6]
[366851748,1750515031807,-4386.49124263,0.000219,2]
[366851749,1750515031816,-344.95627202,0.000219,2]
[366851750,1750515031826,-2332.44042702,0.000219,2]
[366851751,1750515031837,-6819.44318108,0.000219,2]
[366851752,1750515031846,-362.32564008,0.000219,2]
[366851753,1750515031857,-8552.3678844,0.000219,2]
[366851754,1750515031868,-711.0,0.00021903,2]
[366851755,1750515031878,-300.0,0.00021941,2]
[366851757,1750515031887,-666.0,0.00021941,2]
[366851758,1750515031897,-300.0,0.00021941,2]
[366851759,1750515031907,-300.0,0.00021941,2]
[366851760,1750515031918,-300.0,0.00021941,2]
[366851761,1750515031928,-23583.58978773,0.00021942,2]
[366851762,1750515031940,-316.41021227,0.00021942,2]
[366851763,1750515031950,-798.0,0.00021957,2]
[366851764,1750515031960,-501.8520891,0.00021973,2]
[366851765,1750515031970,-500.0,0.00021989,2]
[366851766,1750515031980,-151.48,0.00021989,2]
[366851767,1750515031990,-269.53,0.0002199,3]
[366851768,1750515031999,-20440.50808672,0.00021998,5]
[366851769,1750515032009,-239480.32770777,0.00021998,5]
[366851776,1750515035043,152.86,0.00013699,2]
[366851809,1750515038016,-18809.24981362,0.0002199,4]
[366851810,1750515038028,-452.69426491,0.0002199,4]
[366851811,1750515038040,-2820.19398518,0.0002199,4]
[366851812,1750515038061,-16590.94911118,0.0002199,4]
[366851813,1750515038077,-5923734.19287453,0.0002199,4]
[366851814,1750515038092,-2803.2,0.0002199,4]
[366851815,1750515038104,-4034.99664384,0.0002199,4]
[366851817,1750515039867,-500.0,0.0002199,4]
[366851818,1750515040088,-529.7792525,0.0002199,4]
[366851819,1750515040111,-2447.48099152,0.0002199,4]
[366851820,1750515040165,-68549.44917535,0.0002199,4]
[366851833,1750515042460,-2053.10709138,0.0002199,4]
[366851846,1750515042573,-287.17143095,0.0002199,4]
[366851848,1750515042585,-772.17999485,0.0002199,4]
[366851850,1750515042596,-697.98468996,0.0002199,4]
[366851852,1750515042607,-913.95338863,0.0002199,4]
[366851872,1750515042807,-1456.5014341,0.0002199,4]
[366852054,1750515045558,-521.23513879,0.0002199,4]
[366852055,1750515045670,-313.85091,0.0002199,4]
[366852072,1750515963559,-151.0,0.00021297,2]
[366852073,1750515964417,-151.0,0.00021297,2]
[366852074,1750515964442,-151.0,0.00021297,2]
[366852075,1750515964465,-151.0,0.00021297,2]
[366852076,1750515964489,-151.0,0.00021297,2]
[366852077,1750515964513,-285.80488263,0.00021297,2]
[366852078,1750515964537,-3459.19511737,0.0002131,2]
[366852087,1750516210890,153.44,0.00013699,2]
[366852093,1750516231659,-202.0,0.00016924,2]
[366852094,1750516231670,-202.0,0.00016924,2]
[366852095,1750516231680,-202.0,0.0001827,3]
[366852096,1750516231690,-202.0,0.00019616,5]
[366852097,1750516231700,-202.0,0.00020962,7]
[366852098,1750516231710,-300.0,0.0002123,2]
[366852099,1750516231721,-359.3114,0.00021231,2]
[366852100,1750516231819,-1581.16421915,0.00021231,2]
[366852101,1750516231831,-1268.90000001,0.00021231,2]
[366852102,1750516231843,-581.12687746,0.00021231,2]
[366852103,1750516231855,-8418.26832605,0.00021231,2]
[366852104,1750516231929,-824.72788746,0.00021231,2]
[366852105,1750516231942,-502.69554176,0.00021231,2]
[366852129,1750516237728,-591.43592135,0.00021231,2]
[366852130,1750516237740,-4483.41,0.00021231,2]
[366852131,1750516237814,-88047.96982676,0.00021231,2]
[366852132,1750516237825,-250.0,0.00021263,2]
[366852133,1750516237835,-150.0,0.00021313,2]
[366852134,1750516237845,-163.72,0.00021354,2]
[366852135,1750516237854,-666.0,0.00021369,2]
[366852136,1750516237864,-1500.0,0.00021459,2]
[366852137,1750516237874,-164.33,0.00021459,2]
[366852138,1750516237883,-405.72,0.00021473,2]
[366852139,1750516237893,-250.0,0.00021599,2]
[366852140,1750516237903,-713.65,0.00021759,2]
[366852141,1750516237914,-200.0,0.00021775,2]
[366852142,1750516237931,-15911.65971282,0.0002178,2]
[366852143,1750516237941,-500.0,0.00021854,3]
[366852144,1750516237951,-23900.0,0.00021863,2]
[366852145,1750516237961,-521.22,0.0002189,2]
[366852146,1750516237972,-2000.0,0.000219,2]
[366852147,1750516237982,-2000.0,0.000219,2]
[366852148,1750516238000,-156.0,0.000219,4]
[366852149,1750516238012,-156.0,0.000219,4]
[366852150,1750516238022,-156.0,0.000219,4]
[366852151,1750516238033,-3947.84211834,0.000219,2]
[366852153,1750516238044,-684.34005294,0.000219,6]
[366852155,1750516238054,-810.75,0.00021905,2]
[366852157,1750516238064,-300.0,0.00021916,2]
[366852159,1750516238075,-300.0,0.00021916,2]
[366852161,1750516238086,-1000.0,0.00021917,2]
[366852163,1750516238096,-153.44,0.00021918,2]
[366852165,1750516238107,-2751.0,0.00021928,2]
[366852167,1750516238118,-250.18,0.00021936,2]
[366852169,1750516238129,-1711.38,0.00021952,2]
[366852171,1750516238139,-350.0,0.00021967,2]
[366852173,1750516238148,-185.18628658,0.00021967,2]
[366852175,1750516238159,-285.87345,0.00021989,2]
[366852177,1750516238169,-300.0,0.00021998,2]
[366852180,1750516238180,-354.0,0.00022,2]
[366852182,1750516238190,-158.53,0.00022,3]
[366852184,1750516238200,-51127.0,0.00022,2]
[366852186,1750516238210,-234.1418907,0.00022,2]
[366852188,1750516238220,-239.42517973,0.00022,2]
[366852190,1750516238230,-2500.0,0.00022,2]
[366852192,1750516238241,-2500.0,0.00022,2]
[366852194,1750516238251,-2647.4568751,0.00022001,2]
[366852196,1750516238261,-252842.6270078,0.00022001,2]
[366852198,1750516238270,-33161.073032,0.00022016,2]
[366852200,1750516238281,-8915.5099099,0.00022031,2]
[366852202,1750516238291,-1000.0,0.00022145,2]
[366852204,1750516238301,-806.60483184,0.000222,2]
[366852206,1750516238312,-35472.56606769,0.00022218,2]
[366852208,1750516238323,-150.0,0.00022269,2]
[366852210,1750516238334,-202.0,0.00022308,9]
[366852211,1750516238344,-327.16,0.00022318,2]
[366852212,1750516238355,-1000.0,0.00022367,2]
[366852213,1750516238366,-659.6146,0.00022384,10]
[366852214,1750516238377,-228.71581217,0.00022405,2]
[366852215,1750516238388,-173.2,0.00022417,2]
[366852216,1750516238398,-150.0,0.00022417,2]
[366852217,1750516238409,-150.0,0.00022417,2]
[366852218,1750516238418,-914.79,0.00022417,2]
[366852219,1750516238432,-150.0,0.00022417,2]
[366852220,1750516238441,-684.34005285,0.00022452,7]
[366852221,1750516238452,-150.0,0.0002253,2]
[366852222,1750516238462,-300.0,0.00022546,2]
[366852223,1750516238471,-166.84,0.00022635,2]
[366852224,1750516238481,-3947.84211834,0.000227,2]
[366852225,1750516238491,-150.0,0.00022739,2]
[366852226,1750516238501,-1000.0,0.00022751,2]
[366852227,1750516238511,-713.0,0.00022767,2]
[366852228,1750516238521,-150.0,0.00022822,2]
[366852229,1750516238531,-7697.13109596,0.00022827,2]
[366852230,1750516238541,-500.0,0.00022887,2]
[366852232,1750516238551,-500.0,0.00022887,2]
[366852234,1750516238561,-500.0,0.000229,2]
[366852236,1750516238572,-500.0,0.000229,2]
[366852237,1750516238582,-500.0,0.000229,2]
[366852240,1750516238592,-500.0,0.000229,2]
[366852242,1750516238601,-150.0,0.000229,2]